bitfinex/quotes_SOLUSD_20220118
["timestamp","ask_amount","ask_price","bid_price","bid_amount"]
[1642496180697,13.7554,138.16,138.09,0.25]
[1642496181903,13.7554,138.16,138.09,11.1097]
[1642496182101,13.7554,138.16,138.1,37.20609923]
[1642496182304,2.895,138.16,138.11,0.25]
[1642496182501,42.74759624,138.17,138.11,0.25]
[1642496182929,42.74759624,138.17,138.1,43.20609923]
[1642496183229,42.74759624,138.17,138.1,37.20609923]
[1642496183433,53.60709624,138.17,138.1,37.20609923]
[1642496183730,53.60709624,138.17,138.1,43.20609923]
[1642496183928,71.48,138.16,138.11,0.25]
[1642496184931,71.48,138.16,138.1,16.859]
[1642496185131,71.48,138.16,138.08,10.8602]
[1642496185132,0.25,138.15,138.08,10.8602]
[1642496185432,3.146,138.15,138.08,6.25]
[1642496185832,42.67734393,138.14,138.08,6.25]
[1642496186135,42.67734393,138.14,138.08,0.25]
[1642496186334,42.67734393,138.14,138.08,6.0]
[1642496186734,42.67734393,138.14,138.02,44.8983]
[1642496186936,11.836,138.13,137.98,8.69]
[1642496187135,11.836,138.13,137.99,8.04018801]
[1642496187737,71.48,138.12,138.0,48.61776636]
[1642496187936,39.4702455,138.11,138.0,48.61776636]
[1642496188136,39.4702455,138.11,138.01,0.25]
[1642496188336,2.896,138.12,138.02,10.8646]
[1642496188536,10.8631,138.13,138.02,10.8646]
[1642496188741,2.896,138.12,138.03,0.25]
[1642496188937,3.146,138.12,138.03,0.25]
[1642496189239,2.896,138.12,138.05,10.8628]
[1642496189440,63.46880002,138.15,138.06,47.64669801]
[1642496189640,38.74420002,138.15,138.06,47.64669801]
[1642496189838,38.74420002,138.15,138.07,0.25]
[1642496190442,38.74420002,138.15,138.08,10.8596]
[1642496190643,41.64020002,138.15,138.08,10.8596]
[1642496190839,38.74420002,138.15,138.09,0.25]
[1642496191243,71.73,138.14,138.06,53.64669801]
[1642496191441,71.73,138.14,138.06,64.50809801]
[1642496191740,2.896,138.13,138.06,6.0]
[1642496191940,2.896,138.13,138.02,2.04018801]
[1642496192141,0.25,138.12,138.03,0.25]
[1642496192440,13.7608,138.11,138.03,0.25]
[1642496192742,112.92207791,138.1,138.03,0.25]
[1642496192941,2.896,138.09,138.03,0.25]
[1642496193441,0.25,138.08,138.03,0.25]
[1642496194442,0.25,138.08,138.03,49.03506517]
[1642496194741,10.43,138.11,138.03,59.89956517]
[1642496194941,13.326,138.13,138.03,65.89956517]
[1642496195142,1.99528106,138.1,138.03,76.32956517]
[1642496195544,1.99528106,138.1,138.03,59.89956517]
[1642496195744,1.99528106,138.1,138.03,11.1145]
[1642496196044,13.7594,138.12,138.03,11.1145]
[1642496196446,13.7594,138.12,138.03,10.8645]
[1642496196644,55.18983031,138.11,138.02,10.8653]
[1642496196844,2.896,138.1,138.02,16.8653]
[1642496197843,2.896,138.1,138.04,10.8637]
[1642496198043,2.896,138.1,138.02,6.0]
[1642496198242,2.896,138.1,138.01,6.0]
[1642496198243,0.25,138.09,138.01,6.0]
[1642496198444,2.896,138.08,137.99,6.0]
[1642496198643,2.896,138.08,137.97,10.69]
[1642496199047,35.50625904,138.07,138.0,54.98326288]
[1642496199447,0.25,138.06,138.0,54.98326288]
[1642496199645,74.626,138.06,138.0,10.8661]
[1642496199847,74.626,138.06,138.0,16.8661]
[1642496200047,3.146,138.06,138.0,16.8661]
[1642496200247,2.896,138.06,138.0,16.8661]
[1642496200647,38.40225904,138.07,138.01,0.25]
[1642496200949,38.40225904,138.07,138.01,11.1159]
[1642496201379,2.896,138.07,138.01,17.1159]
[1642496202052,12.86168106,138.08,138.01,17.1159]
[1642496202250,0.25,138.07,138.01,17.1159]
[1642496202451,3.146,138.07,138.01,17.1159]
[1642496203253,14.0133,138.07,138.01,6.25]
[1642496203852,2.896,138.07,138.01,6.25]
[1642496204454,2.896,138.07,138.01,11.1158]
[1642496204753,1.99528106,138.08,138.01,17.1158]
[1642496204953,1.99528106,138.08,138.01,22.6358]
[1642496205355,1.99528106,138.1,138.01,24.67598801]
[1642496205855,1.99528106,138.1,138.01,19.41598801]
[1642496206859,4.89128106,138.11,138.02,2.04018801]
[1642496207057,4.89128106,138.11,138.04,10.8618]
[1642496207257,4.89128106,138.11,138.05,0.25]
[1642496207860,76.37128106,138.11,138.05,0.25]
[1642496208059,0.25,138.1,138.05,11.1122]
[1642496208261,0.25,138.1,138.05,17.1122]
[1642496208761,4.89128106,138.11,138.06,47.95190406]
[1642496208996,1.99528106,138.09,138.06,47.95190406]
[1642496209192,1.99528106,138.09,138.07,0.25]
[1642496209392,1.99528106,138.09,138.07,11.1113]
[1642496209892,8.059681,138.09,138.07,17.1113]
[1642496210094,1.99528106,138.11,138.07,17.1113]
[1642496210994,1.99528106,138.13,138.07,17.1113]
[1642496211997,0.25,138.12,138.07,6.0]
[1642496212196,71.73,138.12,138.07,6.0]
[1642496212394,71.73,138.12,138.03,12.47018801]
[1642496212395,2.896,138.11,138.04,6.0]
[1642496212595,2.896,138.11,138.04,0.25]
[1642496212796,0.25,138.1,138.04,0.25]
[1642496213203,45.37310947,138.1,138.04,0.25]
[1642496214004,2.896,138.09,138.04,0.25]
[1642496214301,73.47528106,138.1,138.04,11.1136]
[1642496214700,73.47528106,138.1,138.04,17.1136]
[1642496214901,1.99528106,138.1,138.04,17.1136]
[1642496215100,1.99528106,138.11,138.04,17.1136]
[1642496215302,0.25,138.1,138.04,6.25]
[1642496215500,2.896,138.09,138.04,6.25]
[1642496215702,2.896,138.09,138.04,0.25]
[1642496215903,1.99528106,138.11,138.04,6.25]
[1642496216202,1.99528106,138.1,138.04,13.554]
[1642496216602,1.99528106,138.1,138.04,24.4175]
[1642496217403,4.89128106,138.13,138.04,24.4175]
[1642496217803,44.11363445,138.12,138.04,24.4175]
[1642496218203,44.11363445,138.12,138.04,26.45768801]
[1642496218403,44.11363445,138.12,138.04,26.20768801]
[1642496218603,44.11363445,138.12,138.04,8.04018801]
[1642496218806,74.376,138.11,138.04,8.04018801]
[1642496219204,0.25,138.1,138.04,6.0]
[1642496219404,76.37128106,138.11,138.03,8.04018801]
[1642496219606,87.23588106,138.11,138.04,48.56817651]
[1642496219807,87.23588106,138.11,138.04,54.56817651]
[1642496220204,76.37128106,138.11,138.04,54.56817651]
[1642496220603,4.89128106,138.11,138.04,54.56817651]
[1642496220807,1.99528106,138.11,138.04,61.58017651]
[1642496221006,1.99528106,138.11,138.06,10.8604]
[1642496221310,1.99528106,138.1,138.07,0.25]
[1642496221706,1.99528106,138.1,138.07,37.59478195]
[1642496221906,1.99528106,138.1,138.07,43.59478195]
[1642496222205,1.99528106,138.1,138.07,6.25]
[1642496222407,6.06439994,138.09,138.07,0.25]
[1642496222607,6.06439994,138.09,138.07,6.25]
[1642496222808,1.99528106,138.1,138.07,6.25]
[1642496223310,4.89128106,138.13,138.07,6.25]
[1642496223509,4.89128106,138.13,138.07,17.1112]
[1642496223710,1.99528106,138.13,138.07,17.1112]
[1642496224109,1.99528106,138.12,138.07,17.1112]
[1642496224510,1.99528106,138.12,138.08,35.6592837]
[1642496224712,1.99528106,138.12,138.09,10.8576]
[1642496224915,1.99528106,138.12,138.09,17.1076]
[1642496225112,1.99528106,138.13,138.09,17.1076]
[1642496225311,1.99528106,138.13,138.09,17.3676]
[1642496225712,4.1172626,138.16,138.09,17.3676]
[1642496225912,4.1172626,138.16,138.09,27.7976]
[1642496226313,5.73981632,138.19,138.09,27.7976]
[1642496226513,4.12295803,138.2,138.09,27.7976]
[1642496226714,4.12295803,138.2,138.09,29.37046938]
[1642496226917,4.12295803,138.2,138.1,71.48]
[1642496227116,4.12295803,138.2,138.13,10.8516]
[1642496227316,4.12295803,138.2,138.14,10.68]
[1642496227718,4.12184763,138.23,138.14,16.94]
[1642496227914,4.12184763,138.23,138.15,38.16548806]
[1642496228117,4.12184763,138.23,138.15,45.06448806]
[1642496228315,4.12184763,138.23,138.18,10.8509]
[1642496228515,4.12184763,138.23,138.18,17.0239]
[1642496228714,8.63481632,138.26,138.19,0.25]
[1642496228916,14.63481632,138.26,138.19,0.25]
[1642496229116,39.61996391,138.25,138.19,0.25]
[1642496229316,2.892,138.24,138.19,0.25]
[1642496229717,0.25,138.23,138.18,42.48554152]
[1642496229916,2.892,138.24,138.18,42.48554152]
[1642496230121,2.892,138.24,138.19,0.25]
[1642496230417,46.38556691,138.25,138.19,11.1012]
[1642496230616,0.25,138.24,138.19,11.1012]
[1642496231717,5.73981632,138.26,138.19,11.1012]
[1642496231917,5.73981632,138.26,138.19,23.6092]
[1642496232117,5.73981632,138.26,138.19,34.0392]
[1642496232316,4.12095019,138.26,138.19,34.0392]
[1642496233318,4.12095019,138.26,138.19,105.5192]
[1642496233819,1.40769794,138.28,138.19,105.5192]
[1642496234419,1.40769794,138.28,138.22,10.8455]
[1642496234620,1.40769794,138.28,138.22,17.4055]
[1642496234819,1.40769794,138.28,138.23,0.25]
[1642496235825,1.40769794,138.28,138.22,0.25]
[1642496236023,8.63181632,138.33,138.24,10.8455]
[1642496236422,8.63181632,138.33,138.25,0.25]
[1642496236624,8.63181632,138.33,138.25,42.81145324]
[1642496236823,8.63181632,138.33,138.25,49.07145324]
[1642496237023,4.09715934,138.32,138.25,49.07145324]
[1642496237522,42.06703906,138.31,138.27,10.8439]
[1642496237922,42.06703906,138.31,138.25,6.25]
[1642496238123,3.142,138.3,138.22,6.0]
[1642496238324,3.142,138.3,138.16,10.43]
[1642496238525,12.21905272,138.29,138.14,42.32972633]
[1642496238824,40.4117964,138.27,138.14,6.15322633]
[1642496239024,13.324,138.26,138.14,6.15322633]
[1642496239225,10.8546,138.25,138.14,6.15322633]
[1642496239423,13.324,138.24,138.07,16.58322633]
[1642496239623,10.43,138.23,138.07,16.58322633]
[1642496239824,3.145,138.22,138.1,10.8583]
[1642496240027,10.43,138.21,138.1,10.8583]
[1642496240229,46.71289027,138.2,138.09,48.69922767]
[1642496240427,10.43,138.19,138.07,12.15322633]
[1642496240629,2.895,138.18,138.07,6.15322633]
[1642496240828,10.43,138.17,138.07,6.15322633]
[1642496241026,2.896,138.16,138.04,10.43]
[1642496241227,10.8612,138.15,138.07,10.8606]
[1642496241432,2.896,138.14,138.03,51.36119834]
[1642496241630,3.146,138.14,138.03,57.36119834]
[1642496241827,9.146,138.14,138.03,57.36119834]
[1642496242430,10.8634,138.12,138.05,10.8624]
[1642496242659,51.24603171,138.11,138.05,10.8624]
[1642496242860,51.49603171,138.11,138.03,6.0]
[1642496243059,51.49603171,138.11,137.99,10.43]
[1642496243261,73.26905272,138.1,137.98,6.15322633]
[1642496243459,2.896,138.09,137.98,6.15322633]
[1642496243659,10.8678,138.06,137.98,6.15322633]
[1642496243860,3.148,138.05,137.98,6.15322633]
[1642496244060,45.97320304,138.05,137.98,6.15322633]
[1642496244661,56.84170304,138.05,137.98,6.15322633]
[1642496245259,56.84170304,138.05,137.95,10.8701]
[1642496245961,2.898,138.05,137.95,16.8701]
[1642496246161,2.898,138.08,137.95,18.44803413]
[1642496246361,0.25,138.07,137.95,27.12803413]
[1642496246560,2.898,138.09,137.96,0.25]
[1642496246762,0.25,138.08,137.99,10.8654]
[1642496246963,41.45962433,138.08,138.0,42.01130703]
[1642496247162,41.45962433,138.08,138.0,0.25]
[1642496247364,47.45962433,138.08,138.0,0.25]
[1642496247663,2.896,138.07,138.0,0.25]
[1642496247865,0.25,138.06,138.0,0.25]
[1642496248067,0.25,138.06,137.98,6.0]
[1642496248265,0.25,138.06,137.99,0.25]
[1642496248464,13.7631,138.07,138.0,10.8664]
[1642496248967,0.25,138.06,137.97,43.86102293]
[1642496249165,2.898,138.05,137.98,0.25]
[1642496249366,43.52934014,138.05,137.98,0.25]
[1642496249566,2.898,138.06,137.98,0.25]
[1642496249766,13.7639,138.09,137.98,11.1177]
[1642496250168,2.898,138.09,137.98,17.3777]
[1642496250466,2.896,138.11,137.98,33.99663413]
[1642496250669,2.896,138.12,137.98,105.47663413]
[1642496251069,2.896,138.12,137.99,4.12557887]
[1642496251371,74.376,138.15,138.03,10.8596]
[1642496251568,74.376,138.15,138.03,19.3136]
[1642496251768,2.896,138.15,138.04,42.94247483]
[1642496252067,2.896,138.15,138.04,51.62247483]
[1642496252268,2.896,138.15,138.04,62.0080537]
[1642496252470,2.896,138.16,138.07,10.8593]
[1642496252668,41.31587588,138.17,138.08,35.57123771]
[1642496252869,71.48,138.16,138.08,41.82123771]
[1642496253072,2.896,138.15,138.08,41.82123771]
[1642496253273,40.48158442,138.14,138.08,41.82123771]
[1642496253671,2.896,138.15,138.08,41.82123771]
[1642496253900,10.8591,138.17,138.09,10.8592]
[1642496254071,2.895,138.16,138.09,17.6622]
[1642496254271,2.895,138.18,138.1,0.25]
[1642496255076,2.895,138.18,138.11,10.8568]
[1642496255274,2.895,138.18,138.11,6.0]
[1642496255674,4.68405272,138.18,138.1,0.25]
[1642496255876,4.68405272,138.18,138.05,0.25]
[1642496256275,0.25,138.17,138.05,0.25]
[1642496256476,2.896,138.16,138.09,10.859]
[1642496256676,47.10386373,138.15,138.09,10.859]
[1642496256975,0.25,138.15,138.1,0.25]
[1642496257579,0.25,138.15,138.11,10.8576]
[1642496257777,1.78905272,138.14,138.02,8.68]
[1642496257976,2.896,138.13,138.0,6.15322633]
[1642496258176,3.146,138.13,138.0,12.15322633]
[1642496258579,35.30145925,138.12,138.01,38.0412032]
[1642496258881,2.896,138.11,138.03,10.8633]
[1642496259079,2.896,138.11,138.04,38.02745268]
[1642496259280,3.146,138.13,138.04,44.27745268]
[1642496259479,0.25,138.13,138.04,44.27745268]
[1642496259679,0.25,138.13,138.04,44.53745268]
[1642496259880,11.1122,138.13,138.05,10.8621]
[1642496260081,48.71913613,138.13,138.04,44.27745268]
[1642496260280,2.896,138.12,138.04,38.02745268]
[1642496260480,2.896,138.12,137.99,36.2144]
[1642496260781,2.896,138.12,138.0,0.25]
[1642496260782,0.25,138.11,138.0,0.25]
[1642496260982,2.896,138.1,138.0,0.25]
[1642496261180,10.8658,138.09,137.98,14.68]
[1642496261413,46.74592273,138.07,137.98,6.0]
[1642496261615,2.898,138.06,137.97,54.7821283]
[1642496261814,3.148,138.06,137.97,54.62890197]
[1642496262411,14.0163,138.06,137.97,65.49700197]
[1642496262612,85.4963,138.06,137.98,0.25]
[1642496263012,85.4963,138.06,137.97,65.49700197]
[1642496263616,14.0163,138.06,137.97,65.49700197]
[1642496263814,13.7663,138.06,137.97,65.49700197]
[1642496264013,2.898,138.06,137.97,65.75700197]
[1642496264214,8.68,138.09,137.97,65.75700197]
[1642496264514,0.25,138.08,138.01,10.8628]
[1642496264716,8.68,138.09,138.02,0.25]
[1642496264915,0.25,138.08,138.01,16.8628]
[1642496265114,2.896,138.07,138.0,37.47759684]
[1642496265315,0.25,138.06,138.0,6.0]
[1642496265516,2.896,138.05,138.0,6.0]
[1642496265914,2.896,138.05,137.93,14.68]
[1642496266121,0.25,138.04,137.93,14.68]
[1642496266317,2.898,138.03,137.94,48.0997555]
[1642496266520,2.898,138.03,137.94,54.0997555]
[1642496266918,2.898,138.05,137.94,58.2268204]
[1642496267218,2.898,138.07,137.95,10.8698]
[1642496267619,0.25,138.06,137.95,17.1298]
[1642496267821,2.898,138.05,137.96,0.25]
[1642496268019,48.46568497,138.05,137.96,0.25]
[1642496268222,51.36368497,138.05,137.96,0.25]
[1642496268419,48.46568497,138.05,137.96,0.25]
[1642496268622,48.46568497,138.05,137.98,38.13248769]
[1642496268820,48.46568497,138.05,137.99,0.25]
[1642496269821,0.25,138.04,137.99,0.25]
[1642496271224,48.46568497,138.05,137.99,0.25]
[1642496271424,48.46568497,138.05,137.99,11.1172]
[1642496271622,0.25,138.04,137.99,11.1172]
[1642496271823,48.46568497,138.05,137.99,11.1172]
[1642496272023,51.36368497,138.05,137.99,11.1172]
[1642496272224,0.25,138.04,137.99,11.1172]
[1642496272424,0.25,138.04,137.95,36.4851]
[1642496272723,0.25,138.04,137.97,10.8681]
[1642496273023,2.03905272,138.04,137.95,6.0]
[1642496273324,2.898,138.03,137.96,0.25]
[1642496273523,2.898,138.03,137.94,12.15322633]
[1642496273524,42.95954978,138.02,137.94,51.9717131]
[1642496273728,2.898,138.01,137.95,0.25]
[1642496273925,13.7697,138.01,137.95,0.25]
[1642496274126,0.25,138.0,137.95,0.25]
[1642496274927,0.25,138.0,137.93,10.8712]
[1642496274928,0.25,138.0,137.94,0.25]
[1642496276027,0.25,138.0,137.91,6.15322633]
[1642496276231,0.25,138.0,137.95,4.12734571]
[1642496276232,11.1227,138.0,137.95,4.12734571]
[1642496276429,2.899,137.99,137.95,4.12734571]
[1642496276830,2.03905272,137.98,137.91,12.15322633]
[1642496277030,48.46568497,137.96,137.91,6.15322633]
[1642496277229,59.34238497,137.96,137.91,6.15322633]
[1642496277430,59.34238497,137.96,137.88,53.28263443]
[1642496277629,59.34238497,137.96,137.89,0.25]
[1642496278032,48.46568497,137.96,137.89,0.25]
[1642496278230,2.899,137.97,137.89,11.1249]
[1642496278632,2.9,137.99,137.89,17.1249]
[1642496278937,2.9,137.99,137.89,17.3849]
[1642496279531,2.899,138.02,137.89,34.7059]
[1642496279732,51.7244,138.04,137.89,36.28383413]
[1642496279934,48.8254,138.04,137.89,36.28383413]
[1642496280464,48.07220495,138.03,137.89,36.28383413]
[1642496280858,48.07220495,138.03,137.9,8.25353551]
[1642496281058,0.25,138.02,137.94,10.8694]
[1642496281262,3.148,138.02,137.95,0.25]
[1642496281460,3.148,138.02,137.95,46.29890697]
[1642496281659,3.148,138.02,137.95,0.25]
[1642496281858,14.0188,138.02,137.92,6.0]
[1642496282258,71.48,138.01,137.9,14.25353551]
[1642496282459,2.899,138.0,137.9,8.25353551]
[1642496282658,49.06680846,138.0,137.91,0.25]
[1642496282862,49.06680846,138.0,137.9,0.25]
[1642496283660,10.8732,137.99,137.9,10.8742]
[1642496283861,3.149,137.98,137.9,6.0]
[1642496284062,3.149,137.98,137.87,6.15322633]
[1642496284063,17.829,137.98,137.87,6.15322633]
[1642496284260,11.829,137.98,137.88,0.25]
[1642496284460,13.61805272,137.98,137.88,0.25]
[1642496284663,45.07670933,137.97,137.88,0.25]
[1642496284861,3.15,137.96,137.87,12.15322633]
[1642496285562,74.63,137.96,137.87,12.15322633]
[1642496285961,74.63,137.96,137.87,6.0]
[1642496286364,80.63,137.96,137.86,54.207163]
[1642496286566,10.8767,137.95,137.87,11.1266]
[1642496286763,3.15,137.94,137.87,10.8766]
[1642496287064,3.15,137.94,137.85,6.15322633]
[1642496287263,3.15,137.94,137.86,0.25]
[1642496287462,3.15,137.94,137.86,42.33759247]
[1642496287463,37.03698686,137.93,137.86,42.33759247]
[1642496287864,37.03698686,137.93,137.86,48.33759247]
[1642496288565,37.03698686,137.93,137.86,59.21479247]
[1642496288767,39.93698686,137.93,137.86,59.21479247]
[1642496288967,2.9,137.93,137.86,59.47479247]
[1642496289568,2.9,137.97,137.86,59.47479247]
[1642496289767,8.9,137.97,137.86,67.22979247]
[1642496289968,38.94247487,137.96,137.86,67.22979247]
[1642496290369,2.9,137.97,137.86,75.90979247]
[1642496290568,2.9,138.0,137.86,75.90979247]
[1642496290767,2.9,138.01,137.86,77.49204109]
[1642496290968,77.167,138.02,137.87,71.48]
[1642496291169,77.167,138.02,137.91,10.8705]
[1642496291369,2.899,138.02,137.92,39.31590459]
[1642496291572,2.899,138.04,137.92,39.31590459]
[1642496291774,2.899,138.04,137.92,45.57590459]
[1642496292072,2.899,138.04,137.95,10.8684]
[1642496292269,4.68805272,138.04,137.92,45.06590459]
[1642496292471,44.9812907,138.03,137.93,0.25]
[1642496292671,2.898,138.02,137.93,0.25]
[1642496292880,0.25,138.01,137.9,6.0]
[1642496293074,10.8747,137.98,137.9,6.0]
[1642496293272,3.149,137.97,137.89,16.8744]
[1642496293472,45.16777714,137.96,137.89,16.8744]
[1642496293681,2.9,137.95,137.89,6.0]
[1642496294075,0.25,137.94,137.86,12.15322633]
[1642496294275,0.25,137.94,137.87,0.25]
[1642496295673,39.7707724,137.92,137.87,0.25]
[1642496295874,2.9,137.93,137.87,0.25]
[1642496296075,2.9,137.99,137.87,0.25]
[1642496296778,43.27750484,137.98,137.87,19.8064]
[1642496296977,43.27750484,137.98,137.87,28.06307896]
[1642496297176,43.27750484,137.98,137.87,34.32307896]
[1642496297779,43.27750484,137.98,137.88,71.48]
[1642496297980,47.2287,138.0,137.91,10.8709]
[1642496298479,8.68,138.02,137.92,0.25]
[1642496298679,2.899,138.01,137.92,0.25]
[1642496298918,2.899,138.01,137.92,8.192]
[1642496299080,40.2176436,138.01,137.92,47.71995686]
[1642496299282,40.2176436,138.01,137.92,53.97995686]
[1642496299480,40.2176436,138.01,137.94,10.8709]
[1642496299880,40.2176436,138.01,137.95,0.25]
[1642496300480,2.898,138.02,137.95,11.1201]
[1642496300682,47.7839,138.04,137.95,11.1201]
[1642496300683,2.898,138.03,137.95,11.1201]
[1642496300881,2.898,138.03,137.95,17.1201]
[1642496301483,2.898,138.03,137.96,46.17749259]
[1642496301684,89.98936806,138.04,137.98,10.8678]
[1642496301887,42.20546806,138.04,137.99,0.25]
[1642496302782,42.20546806,138.04,137.99,42.11961402]
[1642496302988,42.20546806,138.04,137.99,0.25]
[1642496303382,0.25,138.03,137.98,10.8678]
[1642496303584,0.25,138.03,137.96,10.8687]
[1642496303786,2.898,138.02,137.96,17.1187]
[1642496304083,46.89936896,138.01,137.96,11.1187]
[1642496304283,47.14936896,138.01,137.96,10.8687]
[1642496305084,0.25,138.01,137.96,10.8687]
[1642496305286,2.898,138.0,137.96,10.8687]
[1642496305585,2.898,138.02,137.96,10.8687]
[1642496305788,2.898,138.02,137.94,48.14456099]
[1642496306186,2.898,138.04,137.95,0.25]
[1642496306888,2.898,138.04,137.98,47.96682462]
[1642496307286,2.898,138.04,137.99,0.25]
[1642496307887,2.898,138.04,137.98,58.83422462]
[1642496308091,0.25,138.03,137.94,6.0]
[1642496308288,2.898,138.02,137.96,0.25]
[1642496308488,3.148,138.03,137.96,0.25]
[1642496309287,3.148,138.03,137.95,35.85908944]
[1642496309489,3.148,138.03,137.96,10.8689]
[1642496309691,2.898,138.04,137.96,11.1189]
[1642496309888,2.898,138.04,137.96,11.3789]
[1642496310790,2.898,138.04,137.96,11.1189]
[1642496310989,0.25,138.03,137.96,0.25]
[1642496311188,2.898,138.02,137.96,0.25]
[1642496311394,0.25,138.01,137.95,0.25]
[1642496311791,10.69,138.01,137.95,0.25]
[1642496311991,45.56028249,138.0,137.95,0.25]
[1642496312591,45.56028249,138.0,137.92,0.25]
[1642496312795,45.56028249,138.0,137.91,44.63643452]
[1642496313493,10.69,138.01,137.92,10.8726]
[1642496313691,0.25,138.01,137.92,10.8726]
[1642496313892,2.898,138.02,137.92,16.8726]
[1642496314292,2.898,138.02,137.93,0.25]
[1642496314695,43.77685758,138.01,137.93,0.25]
[1642496315494,54.64855758,138.01,137.94,43.96800054]
[1642496315894,54.64855758,138.01,137.95,0.25]
[1642496316093,54.64855758,138.01,137.94,43.96800054]
[1642496316294,54.64855758,138.01,137.95,0.25]
[1642496316494,2.898,138.0,137.95,0.25]
[1642496317896,2.899,138.02,137.95,0.25]
[1642496318097,2.898,138.03,137.95,8.224]
[1642496318297,5.42418276,138.06,137.95,14.484]
[1642496318898,38.5782338,138.05,137.95,25.354]
[1642496320499,2.898,138.07,137.96,10.44]
[1642496320699,6.90602145,138.09,137.96,10.44]
[1642496320901,4.00802145,138.09,137.99,10.8628]
[1642496321199,4.00802145,138.1,137.99,28.0668]
[1642496321427,4.00802145,138.1,138.0,37.2164769]
[1642496321428,48.43506797,138.1,138.0,37.2164769]
[1642496321799,48.43506797,138.1,138.0,43.4764769]
[1642496322001,4.00802145,138.1,138.03,10.8622]
[1642496322400,2.896,138.13,138.04,0.25]
[1642496322401,4.00802145,138.13,138.04,0.25]
[1642496323001,46.15491478,138.12,138.04,40.03162275]
[1642496323200,46.15491478,138.12,138.06,10.8601]
[1642496323400,46.15491478,138.12,138.07,0.25]
[1642496324002,46.15491478,138.12,138.03,6.0]
[1642496324201,3.146,138.11,138.01,10.12793691]
[1642496324401,76.41505272,138.11,138.02,10.8637]
[1642496324803,76.41505272,138.11,138.02,16.8637]
[1642496325002,4.93505272,138.11,138.02,63.78132492]
[1642496325214,3.146,138.11,138.02,63.78132492]
[1642496325404,14.01,138.11,138.02,63.78132492]
[1642496325605,14.01,138.11,138.03,0.25]
[1642496326004,1.78905272,138.1,138.03,0.25]
[1642496326204,47.91631997,138.09,138.03,0.25]
[1642496327203,47.91631997,138.09,138.02,0.25]
[1642496327603,47.91631997,138.09,138.02,11.1143]
[1642496327806,45.02031997,138.09,138.03,0.25]
[1642496328005,45.02031997,138.09,138.03,41.29886529]
[1642496329002,45.02031997,138.09,138.03,11.1132]
[1642496330407,45.02031997,138.09,138.03,0.25]
[1642496330806,45.02031997,138.09,138.02,0.25]
[1642496331611,45.02031997,138.09,138.02,10.8643]
[1642496331805,2.896,138.11,138.03,0.25]
[1642496332808,43.98200902,138.1,138.03,0.25]
[1642496333010,43.98200902,138.1,138.0,38.17735401]
[1642496333209,43.98200902,138.1,138.03,10.8631]
[1642496333408,43.98200902,138.1,138.04,0.25]
[1642496336108,43.98200902,138.1,138.02,10.8643]
[1642496336435,43.98200902,138.1,138.03,0.25]
[1642496337034,54.84660902,138.1,138.03,0.25]
[1642496338636,43.98200902,138.1,138.03,0.25]
[1642496338839,43.98200902,138.1,138.03,11.1133]
[1642496340841,43.98200902,138.1,138.03,0.25]
[1642496342541,54.84660902,138.1,138.03,0.25]
[1642496342942,54.84660902,138.1,138.02,6.0]
[1642496343143,82.17,138.09,137.98,4.12793691]
[1642496343345,82.17,138.09,137.98,10.12793691]
[1642496343346,91.066,138.09,137.98,10.12793691]